[Event "Titled Tuesday Blitz November 07 Late 2023"]
[White "Kokoszczynski, Jan"]
[Black "Harriott, Tyrell"]
[WhiteFideId "1174460"]
[BlackFideId "2086484"]
[WhiteElo "2609"]
[BlackElo "2366"]
[Result "1-0"]
[Round "6"]
[TimeControl "180+1"]
[Date "2023.11.07"]
[WhiteClock "0:00:13"]
[BlackClock "0:00:07"]
[Board "67"]

1. Nf3 {[%clk 0:02:59]}  d5 {[%clk 0:02:58]} 2. g3 {[%clk 0:02:58]}  e6 {[%clk 0:02:58]} 3. Bg2 {[%clk 0:02:59]}  Bd6 {[%clk 0:02:58]} 4. O-O {[%clk 0:02:59]}  f5 {[%clk 0:02:59]} 5. d4 {[%clk 0:02:59]}  Nf6 {[%clk 0:02:59]} 6. c4 {[%clk 0:02:59]}  c6 {[%clk 0:02:58]} 7. b3 {[%clk 0:02:59]}  O-O {[%clk 0:02:56]} 8. Ba3 {[%clk 0:02:59]}  Bxa3 {[%clk 0:02:55]} 9. Nxa3 {[%clk 0:03:00]}  Bd7 {[%clk 0:02:52]} 10. Nc2 {[%clk 0:02:59]}  Be8 {[%clk 0:02:51]} 11. Nce1 {[%clk 0:02:59]}  Bh5 {[%clk 0:02:48]} 12. Ne5 {[%clk 0:02:52]}  Nbd7 {[%clk 0:02:47]} 13. N1d3 {[%clk 0:02:52]}  Nxe5 {[%clk 0:02:47]} 14. Nxe5 {[%clk 0:02:53]}  Nd7 {[%clk 0:02:47]} 15. Nxd7 {[%clk 0:02:26]}  Qxd7 {[%clk 0:02:46]} 16. Qd3 {[%clk 0:02:27]}  f4 {[%clk 0:02:38]} 17. e4 {[%clk 0:02:21]}  f3 {[%clk 0:02:28]} 18. Bh3 {[%clk 0:02:19]}  Bg6 {[%clk 0:02:27]} 19. Rfe1 {[%clk 0:02:17]}  dxe4 {[%clk 0:02:27]} 20. Rxe4 {[%clk 0:02:17]}  Bxe4 {[%clk 0:02:25]} 21. Qxe4 {[%clk 0:02:18]}  Rae8 {[%clk 0:02:22]} 22. Re1 {[%clk 0:02:19]}  Rf6 {[%clk 0:02:04]} 23. Bg4 {[%clk 0:02:18]}  Qf7 {[%clk 0:01:59]} 24. h4 {[%clk 0:02:14]}  g6 {[%clk 0:01:54]} 25. Re3 {[%clk 0:02:13]}  Kg7 {[%clk 0:01:47]} 26. Qe5 {[%clk 0:01:51]}  Kg8 {[%clk 0:01:37]} 27. d5 {[%clk 0:01:51]}  cxd5 {[%clk 0:01:29]} 28. cxd5 {[%clk 0:01:51]}  Qe7 {[%clk 0:01:17]} 29. Bxe6+ {[%clk 0:01:47]}  Rxe6 {[%clk 0:00:49]} 30. dxe6 {[%clk 0:01:16]}  Rf8 {[%clk 0:00:47]} 31. Qe4 {[%clk 0:01:16]}  Qd6 {[%clk 0:00:37]} 32. e7 {[%clk 0:01:14]}  Re8 {[%clk 0:00:36]} 33. Qxf3 {[%clk 0:01:01]}  Rxe7 {[%clk 0:00:33]} 34. Rxe7 {[%clk 0:00:59]}  Qxe7 {[%clk 0:00:34]} 35. Kg2 {[%clk 0:00:58]}  b6 {[%clk 0:00:22]} 36. Qd5+ {[%clk 0:00:58]}  Kg7 {[%clk 0:00:22]} 37. a4 {[%clk 0:00:57]}  h5 {[%clk 0:00:21]} 38. Kf3 {[%clk 0:00:56]}  Qf6+ {[%clk 0:00:19]} 39. Ke2 {[%clk 0:00:51]}  Qe7+ {[%clk 0:00:19]} 40. Kd3 {[%clk 0:00:50]}  Kh7 {[%clk 0:00:18]} 41. Kc4 {[%clk 0:00:45]}  Qe2+ {[%clk 0:00:16]} 42. Qd3 {[%clk 0:00:27]}  Qxf2 {[%clk 0:00:16]} 43. Kb5 {[%clk 0:00:28]}  Qc5+ {[%clk 0:00:16]} 44. Ka6 {[%clk 0:00:28]}  Qc7 {[%clk 0:00:15]} 45. b4 {[%clk 0:00:22]}  Qxg3 {[%clk 0:00:12]} 46. Kxa7 {[%clk 0:00:21]}  Qc7+ {[%clk 0:00:13]} 47. Ka6 {[%clk 0:00:21]}  Kh6 {[%clk 0:00:11]} 48. Qe3+ {[%clk 0:00:20]}  Kh7 {[%clk 0:00:11]} 49. Qxb6 {[%clk 0:00:21]}  Qc4+ {[%clk 0:00:10]} 50. Qb5 {[%clk 0:00:20]}  Qc8+ {[%clk 0:00:10]} 51. Qb7+ {[%clk 0:00:20]}  Qxb7+ {[%clk 0:00:11]} 52. Kxb7 {[%clk 0:00:21]}  g5 {[%clk 0:00:11]} 53. a5 {[%clk 0:00:18]}  g4 {[%clk 0:00:11]} 54. a6 {[%clk 0:00:19]}  g3 {[%clk 0:00:11]} 55. a7 {[%clk 0:00:20]}  g2 {[%clk 0:00:12]} 56. a8=Q {[%clk 0:00:21]}  g1=Q {[%clk 0:00:13]} 57. Qf8 {[%clk 0:00:19]}  Qg2+ {[%clk 0:00:11]} 58. Kb6 {[%clk 0:00:18]}  Qg1+ {[%clk 0:00:11]} 59. Qc5 {[%clk 0:00:18]}  Qg6+ {[%clk 0:00:09]} 60. Ka5 {[%clk 0:00:17]}  Qg4 {[%clk 0:00:09]} 61. Qe7+ {[%clk 0:00:17]}  Kg8 {[%clk 0:00:08]} 62. b5 {[%clk 0:00:17]}  Qg2 {[%clk 0:00:05]} 63. b6 {[%clk 0:00:16]}  Qa8+ {[%clk 0:00:05]} 64. Kb5 {[%clk 0:00:15]}  Qd5+ {[%clk 0:00:05]} 65. Kb4 {[%clk 0:00:16]}  Qd4+ {[%clk 0:00:05]} 66. Ka5 {[%clk 0:00:15]}  Qc3+ {[%clk 0:00:04]} 67. Qb4 {[%clk 0:00:11]}  Qa1+ {[%clk 0:00:03]} 68. Kb5 {[%clk 0:00:11]}  Qf1+ {[%clk 0:00:03]} 69. Kc6 {[%clk 0:00:11]}  Qf6+ {[%clk 0:00:02]} 70. Kc7 {[%clk 0:00:10]}  Qe5+ {[%clk 0:00:01]} 71. Qd6 {[%clk 0:00:10]}  Qc3+ {[%clk 0:00:01]} 72. Qc6 {[%clk 0:00:10]}  Qb3 {[%clk 0:00:02]} 73. b7 {[%clk 0:00:09]}  Kf7 {[%clk 0:00:03]} 74. b8=Q {[%clk 0:00:10]}  Qxb8+ {[%clk 0:00:02]} 75. Kxb8 {[%clk 0:00:11]}  Kg7 {[%clk 0:00:01]} 76. Qe6 {[%clk 0:00:11]}  Kh7 {[%clk 0:00:02]} 77. Qe7+ {[%clk 0:00:11]}  Kg6 {[%clk 0:00:03]} 78. Qg5+ {[%clk 0:00:10]}  Kf7 {[%clk 0:00:02]} 79. Qxh5+ {[%clk 0:00:11]}  Kg7 {[%clk 0:00:03]} 80. Qg5+ {[%clk 0:00:12]}  Kf7 {[%clk 0:00:03]} 81. h5 {[%clk 0:00:12]}  Kf8 {[%clk 0:00:04]} 82. h6 {[%clk 0:00:13]}  Kf7 {[%clk 0:00:05]} 83. h7 {[%clk 0:00:14]}  Kf8 {[%clk 0:00:06]} 84. h8=Q+ {[%clk 0:00:14]}  Kf7 {[%clk 0:00:07]} 85. Qhf6+ {[%clk 0:00:13]}  Ke8 {[%clk 0:00:07]} 86. Qe7# {[%clk 0:00:13]} 1-0


[Site "https://www.chess.com"]

[Event "Titled Tuesday Blitz November 07 Late 2023"]
[White "Sturt, Raven"]
[Black "Samarth J Rao"]
[WhiteFideId "2007304"]
[BlackFideId "46652370"]
[WhiteElo "2600"]
[BlackElo "2113"]
[Result "1-0"]
[Round "6"]
[TimeControl "180+1"]
[Date "2023.11.07"]
[WhiteClock "0:01:02"]
[BlackClock "0:00:00"]
[Board "68"]

1. f4 {[%clk 0:03:00]}  d5 {[%clk 0:02:56]} 2. Nf3 {[%clk 0:03:01]}  Nf6 {[%clk 0:02:55]} 3. e3 {[%clk 0:03:01]}  g6 {[%clk 0:02:54]} 4. b3 {[%clk 0:03:01]}  Bg7 {[%clk 0:02:55]} 5. Bb2 {[%clk 0:03:01]}  O-O {[%clk 0:02:55]} 6. Be2 {[%clk 0:03:01]}  c5 {[%clk 0:02:55]} 7. O-O {[%clk 0:03:02]}  Nc6 {[%clk 0:02:56]} 8. Na3 {[%clk 0:02:57]}  a6 {[%clk 0:02:55]} 9. Ne5 {[%clk 0:02:58]}  Nxe5 {[%clk 0:02:52]} 10. fxe5 {[%clk 0:02:57]}  Ne8 {[%clk 0:02:30]} 11. d4 {[%clk 0:02:56]}  Bf5 {[%clk 0:02:29]} 12. c4 {[%clk 0:02:56]}  Nc7 {[%clk 0:02:27]} 13. dxc5 {[%clk 0:02:51]}  dxc4 {[%clk 0:02:15]} 14. Nxc4 {[%clk 0:02:49]}  Ne6 {[%clk 0:02:13]} 15. b4 {[%clk 0:02:46]}  Qc7 {[%clk 0:02:09]} 16. Qb3 {[%clk 0:02:36]}  Be4 {[%clk 0:02:03]} 17. Bf3 {[%clk 0:02:33]}  Ng5 {[%clk 0:01:16]} 18. Rad1 {[%clk 0:02:20]}  Rfd8 {[%clk 0:00:54]} 19. Rxd8+ {[%clk 0:02:09]}  Rxd8 {[%clk 0:00:52]} 20. Bxe4 {[%clk 0:02:09]}  Nxe4 {[%clk 0:00:52]} 21. e6 {[%clk 0:01:56]}  f5 {[%clk 0:00:29]} 22. Bxg7 {[%clk 0:01:55]}  Kxg7 {[%clk 0:00:29]} 23. Qb2+ {[%clk 0:01:56]}  Nf6 {[%clk 0:00:29]} 24. Qe5 {[%clk 0:01:48]}  Qxe5 {[%clk 0:00:22]} 25. Nxe5 {[%clk 0:01:48]}  Rd2 {[%clk 0:00:15]} 26. a3 {[%clk 0:01:35]}  Nd5 {[%clk 0:00:12]} 27. Nc4 {[%clk 0:01:13]}  Rc2 {[%clk 0:00:13]} 28. Rd1 {[%clk 0:01:13]}  Nf6 {[%clk 0:00:01]} 29. Na5 {[%clk 0:01:04]}  Ne4 {[%clk 0:00:01]} 30. Nxb7 {[%clk 0:01:04]}  Kf6 {[%clk 0:00:01]} 31. Nd8 {[%clk 0:01:02]}  Rc3 {[%clk 0:00:00]} 32. c6 {[%clk 0:01:02]} 1-0


[Site "https://www.chess.com"]

[Event "Titled Tuesday Blitz November 07 Late 2023"]
[White "Pavlidou, Ekaterini"]
[Black "ChessBrainiacOnTwitch"]
[WhiteFideId "4213262"]
[WhiteElo "2355"]
[BlackElo "2783"]
[Result "0-1"]
[Round "6"]
[TimeControl "180+1"]
[Date "2023.11.07"]
[WhiteClock "0:00:05"]
[BlackClock "0:00:46"]
[Board "69"]

1. d4 {[%clk 0:03:00]}  Nf6 {[%clk 0:03:00]} 2. c4 {[%clk 0:03:01]}  g6 {[%clk 0:03:00]} 3. Nc3 {[%clk 0:03:00]}  Bg7 {[%clk 0:03:00]} 4. e4 {[%clk 0:03:00]}  d6 {[%clk 0:03:00]} 5. Bd3 {[%clk 0:02:58]}  O-O {[%clk 0:03:00]} 6. Nge2 {[%clk 0:02:58]}  Nbd7 {[%clk 0:02:57]} 7. h3 {[%clk 0:02:57]}  e5 {[%clk 0:02:54]} 8. d5 {[%clk 0:02:56]}  a5 {[%clk 0:02:55]} 9. Be3 {[%clk 0:02:55]}  b6 {[%clk 0:02:53]} 10. g4 {[%clk 0:02:54]}  Nc5 {[%clk 0:02:52]} 11. Bc2 {[%clk 0:02:54]}  h5 {[%clk 0:02:40]} 12. f3 {[%clk 0:02:52]}  Nh7 {[%clk 0:02:24]} 13. Qd2 {[%clk 0:02:41]}  h4 {[%clk 0:02:20]} 14. O-O-O {[%clk 0:02:35]}  Bf6 {[%clk 0:02:20]} 15. f4 {[%clk 0:02:29]}  exf4 {[%clk 0:02:19]} 16. Nxf4 {[%clk 0:02:21]}  Ng5 {[%clk 0:02:17]} 17. Rdf1 {[%clk 0:02:00]}  Re8 {[%clk 0:02:16]} 18. Qg2 {[%clk 0:01:53]}  Bxc3 {[%clk 0:02:06]} 19. bxc3 {[%clk 0:01:52]}  Ngxe4 {[%clk 0:02:07]} 20. Bd4 {[%clk 0:01:48]}  Qg5 {[%clk 0:01:57]} 21. Kb1 {[%clk 0:01:36]}  Bd7 {[%clk 0:01:55]} 22. Ne6 {[%clk 0:01:18]}  Nd2+ {[%clk 0:01:29]} 23. Kc1 {[%clk 0:01:06]}  Nxe6 {[%clk 0:01:11]} 24. Qxd2 {[%clk 0:00:46]}  Qxd2+ {[%clk 0:01:12]} 25. Kxd2 {[%clk 0:00:46]}  Nxd4 {[%clk 0:01:13]} 26. cxd4 {[%clk 0:00:46]}  Kg7 {[%clk 0:01:11]} 27. g5 {[%clk 0:00:45]}  Re7 {[%clk 0:01:10]} 28. Rf3 {[%clk 0:00:36]}  Rae8 {[%clk 0:01:10]} 29. Bd3 {[%clk 0:00:36]}  Rh8 {[%clk 0:01:00]} 30. Rf4 {[%clk 0:00:35]}  Rh5 {[%clk 0:00:59]} 31. Rhf1 {[%clk 0:00:33]}  Rxg5 {[%clk 0:00:59]} 32. R1f2 {[%clk 0:00:30]}  Rg3 {[%clk 0:00:54]} 33. Rxh4 {[%clk 0:00:28]}  Rxh3 {[%clk 0:00:55]} 34. Rxh3 {[%clk 0:00:27]}  Bxh3 {[%clk 0:00:55]} 35. Rf3 {[%clk 0:00:24]}  Bd7 {[%clk 0:00:55]} 36. Kc3 {[%clk 0:00:23]}  f5 {[%clk 0:00:55]} 37. c5 {[%clk 0:00:23]}  Kf6 {[%clk 0:00:52]} 38. c6 {[%clk 0:00:22]}  Be8 {[%clk 0:00:52]} 39. Rh3 {[%clk 0:00:21]}  Bf7 {[%clk 0:00:52]} 40. Rh7 {[%clk 0:00:20]}  Bxd5 {[%clk 0:00:50]} 41. Rh8 {[%clk 0:00:20]}  Bf7 {[%clk 0:00:48]} 42. Bb5 {[%clk 0:00:18]}  g5 {[%clk 0:00:47]} 43. Rd8 {[%clk 0:00:16]}  g4 {[%clk 0:00:48]} 44. Kd2 {[%clk 0:00:13]}  Bxa2 {[%clk 0:00:46]} 45. Rf8+ {[%clk 0:00:13]}  Bf7 {[%clk 0:00:45]} 46. Bc4 {[%clk 0:00:13]}  Kg7 {[%clk 0:00:45]} 47. Rd8 {[%clk 0:00:08]}  Bxc4 {[%clk 0:00:45]} 48. Rd7 {[%clk 0:00:05]}  Kf6 {[%clk 0:00:46]} 0-1


[Site "https://www.chess.com"]

[Event "Titled Tuesday Blitz November 07 Late 2023"]
[White "Mladenovic, Stefan"]
[Black "Jovic, Stanoje"]
[WhiteFideId "942227"]
[BlackFideId "905020"]
[WhiteElo "2648"]
[BlackElo "2450"]
[Result "1-0"]
[Round "6"]
[TimeControl "180+1"]
[Date "2023.11.07"]
[WhiteClock "0:01:16"]
[BlackClock "0:00:00"]
[Board "71"]

1. d4 {[%clk 0:03:00]}  Nf6 {[%clk 0:02:59]} 2. Nf3 {[%clk 0:03:01]}  e6 {[%clk 0:02:59]} 3. e3 {[%clk 0:03:00]}  d5 {[%clk 0:02:57]} 4. Bd3 {[%clk 0:03:01]}  Be7 {[%clk 0:02:57]} 5. O-O {[%clk 0:03:01]}  b6 {[%clk 0:02:56]} 6. b3 {[%clk 0:03:01]}  O-O {[%clk 0:02:55]} 7. Bb2 {[%clk 0:03:02]}  c5 {[%clk 0:02:54]} 8. Nbd2 {[%clk 0:03:02]}  Bb7 {[%clk 0:02:54]} 9. Qe2 {[%clk 0:03:02]}  Ne4 {[%clk 0:02:50]} 10. dxc5 {[%clk 0:03:01]}  bxc5 {[%clk 0:02:50]} 11. Rfd1 {[%clk 0:02:56]}  Nd7 {[%clk 0:02:42]} 12. c4 {[%clk 0:02:55]}  Qc7 {[%clk 0:02:34]} 13. Rac1 {[%clk 0:02:51]}  f5 {[%clk 0:02:32]} 14. cxd5 {[%clk 0:02:50]}  exd5 {[%clk 0:02:31]} 15. Ba6 {[%clk 0:02:41]}  Bxa6 {[%clk 0:02:23]} 16. Qxa6 {[%clk 0:02:40]}  Qb6 {[%clk 0:02:22]} 17. Qd3 {[%clk 0:02:31]}  Ndf6 {[%clk 0:01:44]} 18. Bxf6 {[%clk 0:02:28]}  Nxf6 {[%clk 0:01:36]} 19. Qxf5 {[%clk 0:02:27]}  a5 {[%clk 0:01:32]} 20. Ng5 {[%clk 0:02:10]}  h6 {[%clk 0:01:25]} 21. Ne6 {[%clk 0:01:57]}  Rf7 {[%clk 0:01:23]} 22. Nf3 {[%clk 0:01:55]}  Ra6 {[%clk 0:01:14]} 23. Nf4 {[%clk 0:01:52]}  a4 {[%clk 0:01:04]} 24. Nxd5 {[%clk 0:01:38]}  Nxd5 {[%clk 0:00:57]} 25. Qxd5 {[%clk 0:01:39]}  Qf6 {[%clk 0:00:34]} 26. Ne5 {[%clk 0:01:22]}  Qxf2+ {[%clk 0:00:28]} 27. Kh1 {[%clk 0:01:22]}  Rf6 {[%clk 0:00:23]} 28. Nxf7 {[%clk 0:01:18]}  Rxf7 {[%clk 0:00:00]} 29. Rf1 {[%clk 0:01:16]} 1-0


[Site "https://www.chess.com"]

[Event "Titled Tuesday Blitz November 07 Late 2023"]
[White "Ozates, Tuna"]
[Black "Arnold, Ken"]
[WhiteFideId "6354521"]
[BlackFideId "2056836"]
[WhiteElo "2583"]
[BlackElo "2420"]
[Result "1-0"]
[Round "6"]
[TimeControl "180+1"]
[Date "2023.11.07"]
[WhiteClock "0:00:16"]
[BlackClock "0:00:12"]
[Board "74"]

1. e4 {[%clk 0:03:00]}  c6 {[%clk 0:02:59]} 2. d4 {[%clk 0:02:59]}  d5 {[%clk 0:03:00]} 3. exd5 {[%clk 0:02:58]}  cxd5 {[%clk 0:03:00]} 4. c4 {[%clk 0:02:59]}  Nf6 {[%clk 0:03:00]} 5. Nc3 {[%clk 0:02:59]}  e6 {[%clk 0:03:00]} 6. Nf3 {[%clk 0:02:58]}  Bb4 {[%clk 0:03:00]} 7. Bd3 {[%clk 0:02:55]}  Nc6 {[%clk 0:03:00]} 8. O-O {[%clk 0:02:55]}  dxc4 {[%clk 0:02:58]} 9. Bxc4 {[%clk 0:02:55]}  O-O {[%clk 0:02:58]} 10. Bg5 {[%clk 0:02:54]}  Be7 {[%clk 0:02:58]} 11. a3 {[%clk 0:02:50]}  b6 {[%clk 0:02:55]} 12. Qd3 {[%clk 0:02:50]}  Bb7 {[%clk 0:02:52]} 13. Rad1 {[%clk 0:02:50]}  Nd5 {[%clk 0:02:45]} 14. Bd2 {[%clk 0:02:44]}  Bf6 {[%clk 0:02:40]} 15. Rfe1 {[%clk 0:02:44]}  Nce7 {[%clk 0:02:38]} 16. Bb3 {[%clk 0:02:39]}  Nxc3 {[%clk 0:02:37]} 17. bxc3 {[%clk 0:02:37]}  Rc8 {[%clk 0:02:26]} 18. Ne5 {[%clk 0:02:22]}  Ng6 {[%clk 0:02:21]} 19. Nxg6 {[%clk 0:01:54]}  hxg6 {[%clk 0:02:19]} 20. Re3 {[%clk 0:01:40]}  Bd5 {[%clk 0:02:13]} 21. c4 {[%clk 0:01:38]}  Bb7 {[%clk 0:02:05]} 22. Bb4 {[%clk 0:01:37]}  Re8 {[%clk 0:02:03]} 23. d5 {[%clk 0:01:28]}  exd5 {[%clk 0:02:02]} 24. Rxe8+ {[%clk 0:01:29]}  Qxe8 {[%clk 0:01:58]} 25. cxd5 {[%clk 0:01:29]}  a5 {[%clk 0:01:47]} 26. d6 {[%clk 0:01:28]}  Bc6 {[%clk 0:01:41]} 27. Bd2 {[%clk 0:01:07]}  Bb5 {[%clk 0:01:19]} 28. Qxg6 {[%clk 0:01:00]}  Bc4 {[%clk 0:01:10]} 29. Bxc4 {[%clk 0:00:53]}  Rxc4 {[%clk 0:01:09]} 30. Qb1 {[%clk 0:00:37]}  Bd4 {[%clk 0:00:52]} 31. Qd3 {[%clk 0:00:29]}  Qa4 {[%clk 0:00:33]} 32. Bg5 {[%clk 0:00:17]}  f6 {[%clk 0:00:12]} 33. d7 {[%clk 0:00:16]} 1-0


[Site "https://www.chess.com"]

[Event "Titled Tuesday Blitz November 07 Late 2023"]
[White "Herman, Daniel"]
[Black "The_Straightforward_Rook"]
[WhiteFideId "30935008"]
[WhiteElo "2414"]
[BlackElo "2570"]
[Result "1-0"]
[Round "6"]
[TimeControl "180+1"]
[Date "2023.11.07"]
[WhiteClock "0:00:36"]
[BlackClock "0:00:14"]
[Board "75"]

1. Nf3 {[%clk 0:03:00]}  Nf6 {[%clk 0:02:57]} 2. g3 {[%clk 0:03:00]}  d5 {[%clk 0:02:56]} 3. Bg2 {[%clk 0:02:57]}  c5 {[%clk 0:02:57]} 4. O-O {[%clk 0:02:58]}  e6 {[%clk 0:02:57]} 5. c4 {[%clk 0:02:49]}  d4 {[%clk 0:02:53]} 6. e3 {[%clk 0:02:45]}  Nc6 {[%clk 0:02:54]} 7. exd4 {[%clk 0:02:42]}  cxd4 {[%clk 0:02:55]} 8. d3 {[%clk 0:02:36]}  Bd6 {[%clk 0:02:55]} 9. Bg5 {[%clk 0:02:33]}  h6 {[%clk 0:02:55]} 10. Bxf6 {[%clk 0:02:32]}  Qxf6 {[%clk 0:02:56]} 11. Nbd2 {[%clk 0:02:31]}  Qe7 {[%clk 0:02:55]} 12. Re1 {[%clk 0:02:24]}  O-O {[%clk 0:02:53]} 13. Nb3 {[%clk 0:02:23]}  Bc5 {[%clk 0:02:45]} 14. Nxc5 {[%clk 0:02:18]}  Qxc5 {[%clk 0:02:46]} 15. Nd2 {[%clk 0:02:14]}  Rd8 {[%clk 0:02:38]} 16. f4 {[%clk 0:02:09]}  a5 {[%clk 0:02:36]} 17. Rf1 {[%clk 0:02:04]}  a4 {[%clk 0:02:33]} 18. Ne4 {[%clk 0:01:59]}  Qe7 {[%clk 0:02:17]} 19. Qe2 {[%clk 0:01:54]}  Bd7 {[%clk 0:02:13]} 20. Rae1 {[%clk 0:01:36]}  Ra5 {[%clk 0:02:12]} 21. c5 {[%clk 0:01:31]}  Be8 {[%clk 0:02:00]} 22. f5 {[%clk 0:01:28]}  e5 {[%clk 0:01:30]} 23. f6 {[%clk 0:01:27]}  Qf8 {[%clk 0:01:30]} 24. fxg7 {[%clk 0:01:19]}  Qxg7 {[%clk 0:01:31]} 25. Nf6+ {[%clk 0:01:16]}  Kh8 {[%clk 0:01:32]} 26. Bxc6 {[%clk 0:01:10]}  Bxc6 {[%clk 0:01:20]} 27. Qxe5 {[%clk 0:01:10]}  Raa8 {[%clk 0:01:13]} 28. Rf4 {[%clk 0:01:09]}  a3 {[%clk 0:00:44]} 29. b3 {[%clk 0:01:03]}  Re8 {[%clk 0:00:36]} 30. Nxe8 {[%clk 0:00:53]}  Qxe5 {[%clk 0:00:30]} 31. Rxe5 {[%clk 0:00:53]}  Bxe8 {[%clk 0:00:31]} 32. Rxd4 {[%clk 0:00:52]}  Bc6 {[%clk 0:00:31]} 33. Re7 {[%clk 0:00:51]}  Ra5 {[%clk 0:00:28]} 34. b4 {[%clk 0:00:48]}  Ra8 {[%clk 0:00:25]} 35. Rxf7 {[%clk 0:00:48]}  Re8 {[%clk 0:00:26]} 36. Kf2 {[%clk 0:00:47]}  Kg8 {[%clk 0:00:23]} 37. Rdf4 {[%clk 0:00:46]}  Bd5 {[%clk 0:00:22]} 38. Rd7 {[%clk 0:00:42]}  Bxa2 {[%clk 0:00:21]} 39. Rxb7 {[%clk 0:00:42]}  Bd5 {[%clk 0:00:21]} 40. Ra7 {[%clk 0:00:42]}  a2 {[%clk 0:00:21]} 41. b5 {[%clk 0:00:37]}  Ra8 {[%clk 0:00:21]} 42. Rxa8+ {[%clk 0:00:37]}  Bxa8 {[%clk 0:00:21]} 43. Ra4 {[%clk 0:00:37]}  Bd5 {[%clk 0:00:22]} 44. c6 {[%clk 0:00:37]}  Kf7 {[%clk 0:00:22]} 45. c7 {[%clk 0:00:36]}  Be6 {[%clk 0:00:14]} 46. Rxa2 {[%clk 0:00:36]} 1-0


[Site "https://www.chess.com"]

[Event "Titled Tuesday Blitz November 07 Late 2023"]
[White "Wanyama, Harold"]
[Black "Przybylski, Wojciech"]
[WhiteFideId "10000380"]
[BlackFideId "1117599"]
[WhiteElo "2425"]
[BlackElo "2525"]
[Result "0-1"]
[Round "6"]
[TimeControl "180+1"]
[Date "2023.11.07"]
[WhiteClock "0:00:00"]
[BlackClock "0:00:07"]
[Board "76"]

1. d4 {[%clk 0:02:56]}  Nf6 {[%clk 0:02:58]} 2. c4 {[%clk 0:02:55]}  e6 {[%clk 0:02:59]} 3. g3 {[%clk 0:02:55]}  d5 {[%clk 0:02:53]} 4. Bg2 {[%clk 0:02:55]}  dxc4 {[%clk 0:02:52]} 5. Nf3 {[%clk 0:02:53]}  Nc6 {[%clk 0:02:51]} 6. Qa4 {[%clk 0:02:50]}  Bd7 {[%clk 0:02:50]} 7. Qxc4 {[%clk 0:02:49]}  a6 {[%clk 0:02:50]} 8. a4 {[%clk 0:02:43]}  Bd6 {[%clk 0:02:47]} 9. O-O {[%clk 0:02:41]}  O-O {[%clk 0:02:46]} 10. Nc3 {[%clk 0:02:41]}  Na5 {[%clk 0:02:16]} 11. Qa2 {[%clk 0:02:36]}  b5 {[%clk 0:02:12]} 12. Ne5 {[%clk 0:02:32]}  b4 {[%clk 0:01:54]} 13. Bxa8 {[%clk 0:02:25]}  Qxa8 {[%clk 0:01:53]} 14. Nxd7 {[%clk 0:02:25]}  Nxd7 {[%clk 0:01:52]} 15. Nd1 {[%clk 0:02:23]}  Qe4 {[%clk 0:01:30]} 16. Be3 {[%clk 0:02:19]}  Qc2 {[%clk 0:01:15]} 17. Qb1 {[%clk 0:01:37]}  Qxe2 {[%clk 0:01:11]} 18. b3 {[%clk 0:01:27]}  Qf3 {[%clk 0:00:52]} 19. Qd3 {[%clk 0:01:23]}  Nf6 {[%clk 0:00:49]} 20. Nb2 {[%clk 0:01:18]}  h5 {[%clk 0:00:37]} 21. Nc4 {[%clk 0:01:15]}  h4 {[%clk 0:00:30]} 22. Qd1 {[%clk 0:00:54]}  Qd5 {[%clk 0:00:26]} 23. Nxa5 {[%clk 0:00:50]}  h3 {[%clk 0:00:25]} 24. f3 {[%clk 0:00:48]}  Qxa5 {[%clk 0:00:25]} 25. Rf2 {[%clk 0:00:47]}  Qd5 {[%clk 0:00:20]} 26. Rb1 {[%clk 0:00:45]}  a5 {[%clk 0:00:20]} 27. Qf1 {[%clk 0:00:44]}  Qh5 {[%clk 0:00:19]} 28. Qb5 {[%clk 0:00:41]}  Nd5 {[%clk 0:00:19]} 29. Bd2 {[%clk 0:00:39]}  Qg6 {[%clk 0:00:18]} 30. Re1 {[%clk 0:00:36]}  Ra8 {[%clk 0:00:17]} 31. Qc6 {[%clk 0:00:33]}  Rf8 {[%clk 0:00:16]} 32. Qa6 {[%clk 0:00:30]}  Qc2 {[%clk 0:00:15]} 33. Bxb4 {[%clk 0:00:24]}  Qxb3 {[%clk 0:00:13]} 34. Bxd6 {[%clk 0:00:24]}  cxd6 {[%clk 0:00:13]} 35. Qxa5 {[%clk 0:00:24]}  Qc4 {[%clk 0:00:12]} 36. Rd2 {[%clk 0:00:20]}  Rc8 {[%clk 0:00:11]} 37. Qb5 {[%clk 0:00:19]}  Qc3 {[%clk 0:00:10]} 38. Qd3 {[%clk 0:00:18]}  Qb4 {[%clk 0:00:10]} 39. Ra1 {[%clk 0:00:17]}  Rc3 {[%clk 0:00:09]} 40. Qe2 {[%clk 0:00:17]}  Re3 {[%clk 0:00:09]} 41. Qf1 {[%clk 0:00:17]}  Qxd2 {[%clk 0:00:08]} 42. Qxh3 {[%clk 0:00:13]}  Rxf3 {[%clk 0:00:07]} 43. Qg2 {[%clk 0:00:12]}  Qxd4+ {[%clk 0:00:07]} 44. Kh1 {[%clk 0:00:00]}  Qxa1+ {[%clk 0:00:07]} 0-1


[Site "https://www.chess.com"]

[Event "Titled Tuesday Blitz November 07 Late 2023"]
[White "Ziatdinov, Raset"]
[Black "Maect19"]
[WhiteFideId "2015323"]
[WhiteElo "2518"]
[BlackElo "2349"]
[Result "1-0"]
[Round "6"]
[TimeControl "180+1"]
[Date "2023.11.07"]
[WhiteClock "0:01:36"]
[BlackClock "0:00:09"]
[Board "77"]

1. e4 {[%clk 0:03:00]}  e5 {[%clk 0:02:57]} 2. Nf3 {[%clk 0:02:59]}  Nc6 {[%clk 0:02:57]} 3. d4 {[%clk 0:02:58]}  exd4 {[%clk 0:02:57]} 4. c3 {[%clk 0:02:58]}  Nf6 {[%clk 0:02:53]} 5. e5 {[%clk 0:02:57]}  Ne4 {[%clk 0:02:53]} 6. Bd3 {[%clk 0:02:52]}  d5 {[%clk 0:02:39]} 7. cxd4 {[%clk 0:02:49]}  Bb4+ {[%clk 0:02:37]} 8. Nbd2 {[%clk 0:02:47]}  Bg4 {[%clk 0:02:34]} 9. O-O {[%clk 0:02:42]}  Bxd2 {[%clk 0:02:26]} 10. Bxd2 {[%clk 0:02:39]}  Nxd2 {[%clk 0:02:00]} 11. Qxd2 {[%clk 0:02:36]}  Bxf3 {[%clk 0:01:59]} 12. gxf3 {[%clk 0:02:35]}  Nxd4 {[%clk 0:01:56]} 13. Qe3 {[%clk 0:02:33]}  Qg5+ {[%clk 0:01:40]} 14. Kh1 {[%clk 0:02:29]}  Qxe3 {[%clk 0:01:35]} 15. fxe3 {[%clk 0:02:29]}  Ne6 {[%clk 0:01:35]} 16. f4 {[%clk 0:02:27]}  O-O-O {[%clk 0:01:28]} 17. Rac1 {[%clk 0:02:24]}  Kb8 {[%clk 0:01:20]} 18. f5 {[%clk 0:02:21]}  Ng5 {[%clk 0:01:19]} 19. h4 {[%clk 0:02:10]}  Ne4 {[%clk 0:01:15]} 20. Bxe4 {[%clk 0:02:09]}  dxe4 {[%clk 0:01:16]} 21. Rc4 {[%clk 0:02:09]}  Rd2 {[%clk 0:01:15]} 22. Rxe4 {[%clk 0:02:08]}  Rxb2 {[%clk 0:01:14]} 23. e6 {[%clk 0:02:07]}  f6 {[%clk 0:01:00]} 24. Rd1 {[%clk 0:02:02]}  Kc8 {[%clk 0:00:49]} 25. Red4 {[%clk 0:01:54]}  Rb6 {[%clk 0:00:44]} 26. Rd7 {[%clk 0:01:48]}  g6 {[%clk 0:00:36]} 27. Rf7 {[%clk 0:01:38]}  gxf5 {[%clk 0:00:09]} 28. e7 {[%clk 0:01:36]} 1-0


[Site "https://www.chess.com"]